[Event "Titled Tuesday Blitz January 10 Early 2023"]
[White "Lamaze, Simon"]
[Black "Mosutha, Thuso"]
[WhiteFideId "36069264"]
[BlackFideId "11302550"]
[WhiteElo "2363"]
[BlackElo "1978"]
[Result "1-0"]
[Round "01"]
[TimeControl "180+2"]
[Date "2023.01.10"]
[WhiteClock "0:02:03"]
[BlackClock "0:01:09"]

1. e4 {[%clk 0:02:57]}  c5 {[%clk 0:02:58]} 2. Nf3 {[%clk 0:02:56]}  d6 {[%clk 0:02:52]} 3. d4 {[%clk 0:02:55]}  cxd4 {[%clk 0:02:53]} 4. Nxd4 {[%clk 0:02:56]}  a6 {[%clk 0:02:52]} 5. c4 {[%clk 0:02:55]}  Nf6 {[%clk 0:02:51]} 6. Nc3 {[%clk 0:02:54]}  g6 {[%clk 0:02:50]} 7. Be3 {[%clk 0:02:54]}  Bg7 {[%clk 0:02:51]} 8. Be2 {[%clk 0:02:54]}  O-O {[%clk 0:02:51]} 9. O-O {[%clk 0:02:55]}  Nc6 {[%clk 0:02:51]} 10. Nc2 {[%clk 0:02:53]}  h5 {[%clk 0:02:40]} 11. f3 {[%clk 0:02:52]}  e6 {[%clk 0:02:33]} 12. Qd2 {[%clk 0:02:52]}  Re8 {[%clk 0:02:26]} 13. Rad1 {[%clk 0:02:48]}  Bf8 {[%clk 0:02:13]} 14. Bg5 {[%clk 0:02:45]}  Be7 {[%clk 0:02:05]} 15. Bf4 {[%clk 0:02:40]}  e5 {[%clk 0:02:04]} 16. Be3 {[%clk 0:02:40]}  Be6 {[%clk 0:02:03]} 17. Nd5 {[%clk 0:02:40]}  Bxd5 {[%clk 0:02:00]} 18. cxd5 {[%clk 0:02:41]}  Nb8 {[%clk 0:01:59]} 19. b4 {[%clk 0:02:38]}  Nbd7 {[%clk 0:01:58]} 20. a4 {[%clk 0:02:38]}  Rc8 {[%clk 0:01:56]} 21. Na3 {[%clk 0:02:38]}  Nh7 {[%clk 0:01:49]} 22. Rc1 {[%clk 0:02:17]}  Rxc1 {[%clk 0:01:40]} 23. Rxc1 {[%clk 0:02:18]}  Bg5 {[%clk 0:01:40]} 24. Bxg5 {[%clk 0:02:18]}  Nxg5 {[%clk 0:01:41]} 25. a5 {[%clk 0:02:15]}  Nf8 {[%clk 0:01:37]} 26. Qe3 {[%clk 0:02:12]}  Qf6 {[%clk 0:01:30]} 27. Rc7 {[%clk 0:02:07]}  Re7 {[%clk 0:01:29]} 28. Rc8 {[%clk 0:02:06]}  Kg7 {[%clk 0:01:26]} 29. Nc4 {[%clk 0:02:06]}  Nfh7 {[%clk 0:01:09]} 30. h4 {[%clk 0:02:03]} 1-0


[Site "https://www.chess.com"]

[Event "Titled Tuesday Blitz January 10 Early 2023"]
[White "Putri, Regita Desyari"]
[Black "Renjith, Sravan"]
[WhiteFideId "7109083"]
[BlackFideId "4306783"]
[WhiteElo "1863"]
[BlackElo "2172"]
[Result "0-1"]
[Round "01"]
[TimeControl "180+2"]
[Date "2023.01.10"]
[WhiteClock "0:00:04"]
[BlackClock "0:00:06"]

1. d4 {[%clk 0:02:52]}  Nf6 {[%clk 0:02:48]} 2. c4 {[%clk 0:02:52]}  e6 {[%clk 0:02:42]} 3. Nf3 {[%clk 0:02:52]}  d5 {[%clk 0:02:36]} 4. Nc3 {[%clk 0:02:50]}  c5 {[%clk 0:02:34]} 5. Bf4 {[%clk 0:02:32]}  Nc6 {[%clk 0:02:24]} 6. e3 {[%clk 0:02:31]}  Be7 {[%clk 0:02:16]} 7. Be2 {[%clk 0:02:01]}  O-O {[%clk 0:02:14]} 8. O-O {[%clk 0:01:54]}  Ne4 {[%clk 0:02:13]} 9. cxd5 {[%clk 0:01:41]}  exd5 {[%clk 0:02:06]} 10. Rc1 {[%clk 0:01:39]}  cxd4 {[%clk 0:02:01]} 11. Nxd4 {[%clk 0:01:38]}  Nxd4 {[%clk 0:02:00]} 12. Qxd4 {[%clk 0:01:35]}  Bf6 {[%clk 0:02:01]} 13. Be5 {[%clk 0:01:32]}  Bxe5 {[%clk 0:01:42]} 14. Qxe5 {[%clk 0:01:33]}  Re8 {[%clk 0:01:25]} 15. Qd4 {[%clk 0:01:26]}  Nxc3 {[%clk 0:01:14]} 16. Rxc3 {[%clk 0:01:25]}  Re4 {[%clk 0:01:00]} 17. Qd3 {[%clk 0:01:17]}  Bf5 {[%clk 0:00:53]} 18. Bf3 {[%clk 0:01:16]}  Re5 {[%clk 0:00:52]} 19. Qd4 {[%clk 0:01:14]}  Qf6 {[%clk 0:00:46]} 20. Rd1 {[%clk 0:01:11]}  h6 {[%clk 0:00:38]} 21. Bxd5 {[%clk 0:01:00]}  Kh8 {[%clk 0:00:13]} 22. Bf3 {[%clk 0:00:50]}  Qe7 {[%clk 0:00:12]} 23. a3 {[%clk 0:00:43]}  Be4 {[%clk 0:00:12]} 24. Bxe4 {[%clk 0:00:39]}  Rxe4 {[%clk 0:00:13]} 25. Qd6 {[%clk 0:00:40]}  Qg5 {[%clk 0:00:12]} 26. Qd7 {[%clk 0:00:28]}  Re7 {[%clk 0:00:10]} 27. Rc8+ {[%clk 0:00:26]}  Rxc8 {[%clk 0:00:11]} 28. Qxc8+ {[%clk 0:00:27]}  Kh7 {[%clk 0:00:11]} 29. Rd8 {[%clk 0:00:22]}  Qe5 {[%clk 0:00:10]} 30. Qc2+ {[%clk 0:00:18]}  g6 {[%clk 0:00:10]} 31. h3 {[%clk 0:00:13]}  Rc7 {[%clk 0:00:09]} 32. Qd2 {[%clk 0:00:13]}  Qf6 {[%clk 0:00:06]} 33. Rd4 {[%clk 0:00:13]}  Qe5 {[%clk 0:00:07]} 34. g3 {[%clk 0:00:12]}  Qe6 {[%clk 0:00:06]} 35. h4 {[%clk 0:00:12]}  Qh3 {[%clk 0:00:05]} 36. Rf4 {[%clk 0:00:06]}  Qe6 {[%clk 0:00:05]} 37. Kg2 {[%clk 0:00:06]}  Rc5 {[%clk 0:00:05]} 38. b4 {[%clk 0:00:05]}  Rd5 {[%clk 0:00:04]} 39. Qc3 {[%clk 0:00:05]}  Rd7 {[%clk 0:00:05]} 40. Rd4 {[%clk 0:00:05]}  Re7 {[%clk 0:00:05]} 41. Rd8 {[%clk 0:00:04]}  f6 {[%clk 0:00:05]} 42. Rd4 {[%clk 0:00:04]}  h5 {[%clk 0:00:04]} 43. e4 {[%clk 0:00:05]}  Qe5 {[%clk 0:00:04]} 44. f4 {[%clk 0:00:05]}  Qe6 {[%clk 0:00:04]} 45. Kf3 {[%clk 0:00:05]}  Qg4+ {[%clk 0:00:05]} 46. Kf2 {[%clk 0:00:06]}  Qh3 {[%clk 0:00:05]} 47. Rd6 {[%clk 0:00:06]}  Qh2+ {[%clk 0:00:05]} 48. Kf3 {[%clk 0:00:05]}  Qh1+ {[%clk 0:00:05]} 49. Kf2 {[%clk 0:00:06]}  Qxe4 {[%clk 0:00:05]} 50. Rxf6 {[%clk 0:00:04]}  Qe2+ {[%clk 0:00:05]} 51. Kg1 {[%clk 0:00:04]}  Qd1+ {[%clk 0:00:06]} 52. Kg2 {[%clk 0:00:04]}  Re2+ {[%clk 0:00:06]} 53. Kf3 {[%clk 0:00:04]}  Qf1# {[%clk 0:00:06]} 0-1


[Site "https://www.chess.com"]

[Event "Titled Tuesday Blitz January 10 Early 2023"]
[White "Fiorito, Joaquin"]
[Black "Mohota, Nisha"]
[WhiteFideId "180173"]
[BlackFideId "5004330"]
[WhiteElo "2405"]
[BlackElo "2177"]
[Result "1-0"]
[Round "01"]
[TimeControl "180+2"]
[Date "2023.01.10"]
[WhiteClock "0:00:24"]
[BlackClock "0:00:02"]

1. d4 {[%clk 0:03:00]}  Nf6 {[%clk 0:02:57]} 2. Nc3 {[%clk 0:03:00]}  d5 {[%clk 0:02:56]} 3. Bf4 {[%clk 0:03:01]}  c6 {[%clk 0:02:48]} 4. e3 {[%clk 0:03:00]}  e6 {[%clk 0:02:39]} 5. Nf3 {[%clk 0:02:57]}  Bb4 {[%clk 0:02:37]} 6. Bd3 {[%clk 0:02:55]}  Ne4 {[%clk 0:02:28]} 7. Bxe4 {[%clk 0:02:41]}  dxe4 {[%clk 0:02:28]} 8. Nd2 {[%clk 0:02:29]}  f5 {[%clk 0:02:26]} 9. O-O {[%clk 0:02:27]}  O-O {[%clk 0:02:25]} 10. Ne2 {[%clk 0:02:20]}  Nd7 {[%clk 0:02:07]} 11. a3 {[%clk 0:02:20]}  Be7 {[%clk 0:02:05]} 12. h3 {[%clk 0:02:10]}  Nf6 {[%clk 0:02:05]} 13. c4 {[%clk 0:02:09]}  Bd6 {[%clk 0:01:59]} 14. Bxd6 {[%clk 0:01:46]}  Qxd6 {[%clk 0:01:59]} 15. c5 {[%clk 0:01:45]}  Qc7 {[%clk 0:01:53]} 16. Nc4 {[%clk 0:01:45]}  e5 {[%clk 0:01:47]} 17. Nxe5 {[%clk 0:01:43]}  Nd5 {[%clk 0:01:41]} 18. Nc3 {[%clk 0:01:42]}  Be6 {[%clk 0:01:35]} 19. Nxd5 {[%clk 0:01:31]}  Bxd5 {[%clk 0:01:34]} 20. b4 {[%clk 0:01:30]}  f4 {[%clk 0:01:27]} 21. Qg4 {[%clk 0:01:24]}  f3 {[%clk 0:01:22]} 22. g3 {[%clk 0:01:24]}  Rf6 {[%clk 0:01:18]} 23. Rab1 {[%clk 0:01:17]}  a6 {[%clk 0:01:12]} 24. a4 {[%clk 0:01:16]}  Be6 {[%clk 0:01:04]} 25. Qg5 {[%clk 0:00:59]}  Bxh3 {[%clk 0:01:01]} 26. Rfd1 {[%clk 0:00:56]}  Rh6 {[%clk 0:00:51]} 27. Ng4 {[%clk 0:00:44]}  Rg6 {[%clk 0:00:47]} 28. Qe5 {[%clk 0:00:44]}  Qd7 {[%clk 0:00:38]} 29. Nh2 {[%clk 0:00:41]}  Re8 {[%clk 0:00:25]} 30. Qf4 {[%clk 0:00:41]}  Bg2 {[%clk 0:00:19]} 31. g4 {[%clk 0:00:35]}  Rh6 {[%clk 0:00:17]} 32. d5 {[%clk 0:00:34]}  Rf8 {[%clk 0:00:15]} 33. dxc6 {[%clk 0:00:31]}  Qe7 {[%clk 0:00:13]} 34. Qg3 {[%clk 0:00:29]}  Rh3 {[%clk 0:00:12]} 35. Qd6 {[%clk 0:00:27]}  Qh4 {[%clk 0:00:10]} 36. cxb7 {[%clk 0:00:25]}  Rxh2 {[%clk 0:00:09]} 37. Qxh2 {[%clk 0:00:26]}  Qxg4 {[%clk 0:00:09]} 38. Qg3 {[%clk 0:00:26]}  Qh5 {[%clk 0:00:08]} 39. Qh2 {[%clk 0:00:25]}  Qg4 {[%clk 0:00:08]} 40. b8=Q {[%clk 0:00:25]}  Bh3+ {[%clk 0:00:06]} 41. Qbg3 {[%clk 0:00:26]}  Qh5 {[%clk 0:00:04]} 42. Qhxh3 {[%clk 0:00:26]}  Qf7 {[%clk 0:00:03]} 43. Rd7 {[%clk 0:00:25]}  Qf6 {[%clk 0:00:02]} 44. Rxg7+ {[%clk 0:00:24]} 1-0


[Site "https://www.chess.com"]

[Event "Titled Tuesday Blitz January 10 Early 2023"]
[White "Onslow, Alfie"]
[Black "Iskusnyh, Sergei"]
[WhiteFideId "436976"]
[BlackFideId "4120027"]
[WhiteElo "2157"]
[BlackElo "2440"]
[Result "0-1"]
[Round "01"]
[TimeControl "180+2"]
[Date "2023.01.10"]
[WhiteClock "0:00:01"]
[BlackClock "0:00:03"]

1. e4 {[%clk 0:02:57]}  e6 {[%clk 0:02:57]} 2. d4 {[%clk 0:02:47]}  d5 {[%clk 0:02:57]} 3. e5 {[%clk 0:02:46]}  c5 {[%clk 0:02:57]} 4. c3 {[%clk 0:02:46]}  Nc6 {[%clk 0:02:57]} 5. Nf3 {[%clk 0:02:47]}  Nge7 {[%clk 0:02:57]} 6. Bd3 {[%clk 0:02:44]}  cxd4 {[%clk 0:02:49]} 7. cxd4 {[%clk 0:02:44]}  Nf5 {[%clk 0:02:49]} 8. Bxf5 {[%clk 0:02:42]}  exf5 {[%clk 0:02:50]} 9. Nc3 {[%clk 0:02:42]}  Be6 {[%clk 0:02:47]} 10. h4 {[%clk 0:02:38]}  h6 {[%clk 0:02:44]} 11. h5 {[%clk 0:02:35]}  Be7 {[%clk 0:02:39]} 12. Be3 {[%clk 0:02:31]}  Qb6 {[%clk 0:02:36]} 13. Qd2 {[%clk 0:02:11]}  Na5 {[%clk 0:02:22]} 14. b3 {[%clk 0:02:11]}  Bb4 {[%clk 0:02:08]} 15. O-O {[%clk 0:02:10]}  Rc8 {[%clk 0:02:07]} 16. Rac1 {[%clk 0:02:10]}  O-O {[%clk 0:01:53]} 17. Bxh6 {[%clk 0:01:43]}  Qd8 {[%clk 0:01:11]} 18. Bg5 {[%clk 0:01:36]}  Qc7 {[%clk 0:00:45]} 19. Bf6 {[%clk 0:00:17]}  gxf6 {[%clk 0:00:43]} 20. exf6 {[%clk 0:00:07]}  f4 {[%clk 0:00:43]} 21. Qd3 {[%clk 0:00:03]}  Qd7 {[%clk 0:00:33]} 22. Ne5 {[%clk 0:00:02]}  Qd8 {[%clk 0:00:22]} 23. Qf3 {[%clk 0:00:02]}  Qxf6 {[%clk 0:00:21]} 24. Nxd5 {[%clk 0:00:02]}  Bxd5 {[%clk 0:00:20]} 25. Qxd5 {[%clk 0:00:03]}  Rcd8 {[%clk 0:00:14]} 26. Qe4 {[%clk 0:00:03]}  Bd6 {[%clk 0:00:07]} 27. Nf3 {[%clk 0:00:02]}  Nc6 {[%clk 0:00:06]} 28. d5 {[%clk 0:00:02]}  Ne5 {[%clk 0:00:06]} 29. Nd4 {[%clk 0:00:02]}  f3 {[%clk 0:00:04]} 30. g3 {[%clk 0:00:01]}  Kh8 {[%clk 0:00:04]} 31. Nf5 {[%clk 0:00:01]}  Rg8 {[%clk 0:00:04]} 32. Rc3 {[%clk 0:00:01]}  Rg4 {[%clk 0:00:03]} 0-1


[Site "https://www.chess.com"]

[Event "Titled Tuesday Blitz January 10 Early 2023"]
[White "Ciuffoletti, Paolo"]
[Black "Ginzburg, Yakov"]
[WhiteFideId "807630"]
[BlackFideId "4157176"]
[WhiteElo "2106"]
[BlackElo "2405"]
[Result "0-1"]
[Round "01"]
[TimeControl "180+2"]
[Date "2023.01.10"]
[WhiteClock "0:00:08"]
[BlackClock "0:00:48"]

1. e4 {[%clk 0:02:59]}  c5 {[%clk 0:02:59]} 2. d4 {[%clk 0:02:58]}  cxd4 {[%clk 0:02:58]} 3. c3 {[%clk 0:02:58]}  d3 {[%clk 0:02:58]} 4. Bxd3 {[%clk 0:02:58]}  d6 {[%clk 0:02:58]} 5. c4 {[%clk 0:02:56]}  Nf6 {[%clk 0:02:57]} 6. Nc3 {[%clk 0:02:56]}  g6 {[%clk 0:02:57]} 7. Nf3 {[%clk 0:02:56]}  Bg7 {[%clk 0:02:57]} 8. O-O {[%clk 0:02:56]}  Nc6 {[%clk 0:02:57]} 9. h3 {[%clk 0:02:56]}  O-O {[%clk 0:02:57]} 10. Be3 {[%clk 0:02:54]}  Bd7 {[%clk 0:02:54]} 11. Qd2 {[%clk 0:02:47]}  Re8 {[%clk 0:02:54]} 12. Rac1 {[%clk 0:02:43]}  Rc8 {[%clk 0:02:53]} 13. Rfd1 {[%clk 0:02:31]}  Qa5 {[%clk 0:02:38]} 14. b3 {[%clk 0:01:51]}  Ne5 {[%clk 0:02:06]} 15. Be2 {[%clk 0:01:39]}  Nxf3+ {[%clk 0:02:01]} 16. Bxf3 {[%clk 0:01:38]}  Bc6 {[%clk 0:02:00]} 17. Nd5 {[%clk 0:01:25]}  Qxd2 {[%clk 0:01:59]} 18. Rxd2 {[%clk 0:01:24]}  Bxd5 {[%clk 0:01:52]} 19. exd5 {[%clk 0:01:22]}  b6 {[%clk 0:01:50]} 20. Bd4 {[%clk 0:01:08]}  Nd7 {[%clk 0:01:48]} 21. Bxg7 {[%clk 0:01:00]}  Kxg7 {[%clk 0:01:49]} 22. Bg4 {[%clk 0:01:01]}  f5 {[%clk 0:01:48]} 23. Bf3 {[%clk 0:00:54]}  a5 {[%clk 0:01:46]} 24. Re1 {[%clk 0:00:47]}  a4 {[%clk 0:01:41]} 25. Rde2 {[%clk 0:00:46]}  Ne5 {[%clk 0:01:40]} 26. Rxe5 {[%clk 0:00:35]}  dxe5 {[%clk 0:01:40]} 27. Rxe5 {[%clk 0:00:35]}  a3 {[%clk 0:01:21]} 28. Re6 {[%clk 0:00:33]}  b5 {[%clk 0:01:21]} 29. cxb5 {[%clk 0:00:29]}  Rc1+ {[%clk 0:01:21]} 30. Kh2 {[%clk 0:00:29]}  Rc2 {[%clk 0:01:21]} 31. Re2 {[%clk 0:00:27]}  Rxe2 {[%clk 0:01:14]} 32. Bxe2 {[%clk 0:00:27]}  Kf6 {[%clk 0:01:08]} 33. f4 {[%clk 0:00:21]}  e6 {[%clk 0:01:02]} 34. Bc4 {[%clk 0:00:14]}  exd5 {[%clk 0:01:00]} 35. Bxd5 {[%clk 0:00:15]}  Ke7 {[%clk 0:00:59]} 36. b6 {[%clk 0:00:13]}  Kd6 {[%clk 0:00:59]} 37. Bf3 {[%clk 0:00:13]}  Rb8 {[%clk 0:00:52]} 38. b7 {[%clk 0:00:13]}  Kc7 {[%clk 0:00:52]} 39. g4 {[%clk 0:00:13]}  Rd8 {[%clk 0:00:51]} 40. Kg3 {[%clk 0:00:12]}  Rd2 {[%clk 0:00:50]} 41. gxf5 {[%clk 0:00:13]}  gxf5 {[%clk 0:00:50]} 42. Kh4 {[%clk 0:00:11]}  Rxa2 {[%clk 0:00:50]} 43. b4 {[%clk 0:00:11]}  Rd2 {[%clk 0:00:49]} 44. Bh5 {[%clk 0:00:08]}  a2 {[%clk 0:00:48]} 0-1


[Site "https://www.chess.com"]

[Event "Titled Tuesday Blitz January 10 Early 2023"]
[White "Manelyuk, Daniil"]
[Black "Barbashin, Igor"]
[WhiteFideId "44173920"]
[BlackFideId "4155718"]
[WhiteElo "2302"]
[BlackElo "2169"]
[Result "1-0"]
[Round "01"]
[TimeControl "180+2"]
[Date "2023.01.10"]
[WhiteClock "0:00:57"]
[BlackClock "0:00:15"]

1. e4 {[%clk 0:02:51]}  d5 {[%clk 0:02:59]} 2. exd5 {[%clk 0:02:50]}  Nf6 {[%clk 0:02:58]} 3. Bb5+ {[%clk 0:02:36]}  Nbd7 {[%clk 0:02:57]} 4. Nc3 {[%clk 0:02:34]}  g6 {[%clk 0:02:56]} 5. d4 {[%clk 0:02:34]}  Bg7 {[%clk 0:02:55]} 6. Nf3 {[%clk 0:02:34]}  O-O {[%clk 0:02:55]} 7. O-O {[%clk 0:02:34]}  Nb6 {[%clk 0:02:54]} 8. Qe2 {[%clk 0:02:31]}  Nbxd5 {[%clk 0:02:53]} 9. Nxd5 {[%clk 0:02:31]}  Qxd5 {[%clk 0:02:29]} 10. c4 {[%clk 0:02:26]}  Qe4 {[%clk 0:02:28]} 11. Qd2 {[%clk 0:02:08]}  Bf5 {[%clk 0:02:15]} 12. Re1 {[%clk 0:02:06]}  Qd3 {[%clk 0:02:14]} 13. Qxd3 {[%clk 0:02:06]}  Bxd3 {[%clk 0:02:13]} 14. Rxe7 {[%clk 0:01:58]}  c6 {[%clk 0:02:11]} 15. Ba4 {[%clk 0:01:58]}  b5 {[%clk 0:01:33]} 16. cxb5 {[%clk 0:01:55]}  Nd5 {[%clk 0:01:32]} 17. Rb7 {[%clk 0:01:47]}  cxb5 {[%clk 0:01:27]} 18. Bxb5 {[%clk 0:01:45]}  Be4 {[%clk 0:01:23]} 19. Nd2 {[%clk 0:01:33]}  Rab8 {[%clk 0:00:58]} 20. Bc6 {[%clk 0:01:29]}  Rxb7 {[%clk 0:00:50]} 21. Bxb7 {[%clk 0:01:30]}  Rb8 {[%clk 0:00:50]} 22. Bc6 {[%clk 0:01:04]}  Rc8 {[%clk 0:00:49]} 23. Bd7 {[%clk 0:01:04]}  Rc7 {[%clk 0:00:46]} 24. Nxe4 {[%clk 0:01:03]}  Rxd7 {[%clk 0:00:45]} 25. Nc5 {[%clk 0:01:03]}  Rc7 {[%clk 0:00:38]} 26. Be3 {[%clk 0:01:02]}  f5 {[%clk 0:00:32]} 27. g3 {[%clk 0:01:01]}  Nxe3 {[%clk 0:00:26]} 28. fxe3 {[%clk 0:01:02]}  Bf8 {[%clk 0:00:23]} 29. Rc1 {[%clk 0:01:01]}  Bxc5 {[%clk 0:00:16]} 30. Rxc5 {[%clk 0:00:59]}  Rb7 {[%clk 0:00:15]} 31. b3 {[%clk 0:00:58]}  Kf7 {[%clk 0:00:15]} 32. Kf2 {[%clk 0:00:57]} 1-0


[Site "https://www.chess.com"]

[Event "Titled Tuesday Blitz January 10 Early 2023"]
[White "Skurikhin, Dmitrij"]
[Black "Aaditya Dhingra"]
[WhiteFideId "4161297"]
[BlackFideId "25678191"]
[WhiteElo "2297"]
[BlackElo "2027"]
[Result "0-1"]
[Round "01"]
[TimeControl "180+2"]
[Date "2023.01.10"]
[WhiteClock "0:01:07"]
[BlackClock "0:01:05"]

1. d4 {[%clk 0:03:00]}  d5 {[%clk 0:02:58]} 2. Nf3 {[%clk 0:03:00]}  Nf6 {[%clk 0:02:56]} 3. c4 {[%clk 0:02:59]}  e6 {[%clk 0:02:55]} 4. Nc3 {[%clk 0:02:59]}  c6 {[%clk 0:02:55]} 5. Bg5 {[%clk 0:02:58]}  Nbd7 {[%clk 0:02:52]} 6. cxd5 {[%clk 0:02:57]}  exd5 {[%clk 0:02:51]} 7. Qc2 {[%clk 0:02:53]}  Be7 {[%clk 0:02:49]} 8. e3 {[%clk 0:02:53]}  O-O {[%clk 0:02:45]} 9. Bd3 {[%clk 0:02:52]}  Re8 {[%clk 0:02:43]} 10. O-O {[%clk 0:02:51]}  h6 {[%clk 0:02:42]} 11. Bh4 {[%clk 0:02:50]}  Ne4 {[%clk 0:02:37]} 12. Bg3 {[%clk 0:02:48]}  Nxg3 {[%clk 0:02:31]} 13. hxg3 {[%clk 0:02:48]}  Bd6 {[%clk 0:02:27]} 14. Rab1 {[%clk 0:02:46]}  a5 {[%clk 0:02:24]} 15. a3 {[%clk 0:02:45]}  Nf6 {[%clk 0:02:23]} 16. b4 {[%clk 0:02:44]}  axb4 {[%clk 0:02:22]} 17. axb4 {[%clk 0:02:45]}  b5 {[%clk 0:02:22]} 18. Rfc1 {[%clk 0:02:19]}  Qe7 {[%clk 0:02:18]} 19. Ne2 {[%clk 0:02:13]}  Bd7 {[%clk 0:02:15]} 20. Ne5 {[%clk 0:02:04]}  Bxe5 {[%clk 0:02:13]} 21. dxe5 {[%clk 0:02:03]}  Qxe5 {[%clk 0:02:13]} 22. Nd4 {[%clk 0:02:04]}  Rac8 {[%clk 0:02:08]} 23. Qc5 {[%clk 0:01:58]}  Ng4 {[%clk 0:01:54]} 24. Nf3 {[%clk 0:01:49]}  Qf6 {[%clk 0:01:52]} 25. Ra1 {[%clk 0:01:43]}  Ra8 {[%clk 0:01:50]} 26. Ra7 {[%clk 0:01:34]}  Rxa7 {[%clk 0:01:42]} 27. Qxa7 {[%clk 0:01:33]}  Qb2 {[%clk 0:01:33]} 28. Rf1 {[%clk 0:01:31]}  Be6 {[%clk 0:01:30]} 29. Qc5 {[%clk 0:01:25]}  Qa3 {[%clk 0:01:17]} 30. Qxc6 {[%clk 0:01:19]}  Rb8 {[%clk 0:01:11]} 31. Qc7 {[%clk 0:01:15]}  Rc8 {[%clk 0:01:07]} 32. Qb7 {[%clk 0:01:07]}  Qxd3 {[%clk 0:01:05]} 33. Qxb5 {[%clk 0:01:07]}  Qxb5 {[%clk 0:01:05]} 0-1


[Site "https://www.chess.com"]

[Event "Titled Tuesday Blitz January 10 Early 2023"]
[White "Kuchava, Ana"]
[Black "Rodriguez Fontecha, Marcos"]
[WhiteFideId "13605348"]
[BlackFideId "2256576"]
[WhiteElo "2101"]
[BlackElo "2309"]
[Result "0-1"]
[Round "01"]
[TimeControl "180+2"]
[Date "2023.01.10"]
[WhiteClock "0:00:02"]
[BlackClock "0:00:26"]

1. d4 {[%clk 0:03:00]}  d5 {[%clk 0:03:00]} 2. Nf3 {[%clk 0:02:55]}  Nf6 {[%clk 0:02:59]} 3. c4 {[%clk 0:02:55]}  c6 {[%clk 0:02:59]} 4. Qb3 {[%clk 0:02:50]}  g6 {[%clk 0:02:54]} 5. Nc3 {[%clk 0:02:48]}  Bg7 {[%clk 0:02:53]} 6. cxd5 {[%clk 0:02:48]}  cxd5 {[%clk 0:02:53]} 7. Bg5 {[%clk 0:02:48]}  Nc6 {[%clk 0:02:34]} 8. e3 {[%clk 0:02:44]}  O-O {[%clk 0:02:23]} 9. Bxf6 {[%clk 0:02:28]}  Bxf6 {[%clk 0:02:24]} 10. Qxd5 {[%clk 0:02:08]}  Qb6 {[%clk 0:02:23]} 11. Qb5 {[%clk 0:02:05]}  Qd8 {[%clk 0:02:15]} 12. Bc4 {[%clk 0:02:02]}  a6 {[%clk 0:02:13]} 13. Qb3 {[%clk 0:01:59]}  Na5 {[%clk 0:02:10]} 14. Qb4 {[%clk 0:01:53]}  e5 {[%clk 0:01:55]} 15. d5 {[%clk 0:01:41]}  Be7 {[%clk 0:01:53]} 16. Qa4 {[%clk 0:01:34]}  b5 {[%clk 0:01:52]} 17. Bxb5 {[%clk 0:01:32]}  axb5 {[%clk 0:01:52]} 18. Qxb5 {[%clk 0:01:33]}  Ba6 {[%clk 0:01:49]} 19. Qa4 {[%clk 0:01:28]}  Qb6 {[%clk 0:01:40]} 20. O-O-O {[%clk 0:01:04]}  Rab8 {[%clk 0:01:39]} 21. b3 {[%clk 0:00:17]}  Rfc8 {[%clk 0:01:18]} 22. Kb2 {[%clk 0:00:16]}  Nc4+ {[%clk 0:01:18]} 23. Ka1 {[%clk 0:00:15]}  Na3 {[%clk 0:01:06]} 24. Rc1 {[%clk 0:00:09]}  Bd3 {[%clk 0:00:54]} 25. Nxe5 {[%clk 0:00:07]}  Bf6 {[%clk 0:00:53]} 26. Nxd3 {[%clk 0:00:05]}  Rxc3 {[%clk 0:00:49]} 27. Rxc3 {[%clk 0:00:02]}  Bxc3+ {[%clk 0:00:50]} 28. Nb2 {[%clk 0:00:02]}  Qc5 {[%clk 0:00:27]} 29. Qc4 {[%clk 0:00:02]}  Nxc4 {[%clk 0:00:26]} 0-1


[Site "https://www.chess.com"]

[Event "Titled Tuesday Blitz January 10 Early 2023"]
[White "Czernek, Tymon"]
[Black "Riverol, Jose"]
[WhiteFideId "1199510"]
[BlackFideId "3000427"]
[WhiteElo "2314"]
[BlackElo "2304"]
[Result "1-0"]
[Round "01"]
[TimeControl "180+2"]
[Date "2023.01.10"]
[WhiteClock "0:02:28"]
[BlackClock "0:01:03"]

1. e4 {[%clk 0:03:00]}  c5 {[%clk 0:02:59]} 2. Nf3 {[%clk 0:02:56]}  Nc6 {[%clk 0:02:59]} 3. d4 {[%clk 0:02:56]}  cxd4 {[%clk 0:03:00]} 4. Nxd4 {[%clk 0:02:57]}  Qb6 {[%clk 0:03:00]} 5. Nb3 {[%clk 0:02:56]}  Nf6 {[%clk 0:03:00]} 6. Nc3 {[%clk 0:02:57]}  e6 {[%clk 0:03:00]} 7. a3 {[%clk 0:02:54]}  a6 {[%clk 0:02:59]} 8. Be3 {[%clk 0:02:53]}  Qc7 {[%clk 0:02:59]} 9. Be2 {[%clk 0:02:52]}  Be7 {[%clk 0:03:00]} 10. O-O {[%clk 0:02:52]}  O-O {[%clk 0:03:00]} 11. f4 {[%clk 0:02:53]}  d6 {[%clk 0:03:00]} 12. Bf3 {[%clk 0:02:53]}  Rb8 {[%clk 0:02:59]} 13. Qe1 {[%clk 0:02:47]}  b5 {[%clk 0:02:59]} 14. Qg3 {[%clk 0:02:44]}  b4 {[%clk 0:02:53]} 15. axb4 {[%clk 0:02:41]}  Nxb4 {[%clk 0:02:53]} 16. e5 {[%clk 0:02:38]}  Nfd5 {[%clk 0:02:07]} 17. Nxd5 {[%clk 0:02:37]}  Nxd5 {[%clk 0:02:04]} 18. Bxd5 {[%clk 0:02:37]}  exd5 {[%clk 0:02:04]} 19. f5 {[%clk 0:02:36]}  dxe5 {[%clk 0:01:41]} 20. f6 {[%clk 0:02:36]}  Bxf6 {[%clk 0:01:41]} 21. Rxf6 {[%clk 0:02:35]}  Qxc2 {[%clk 0:01:41]} 22. Bh6 {[%clk 0:02:32]}  g6 {[%clk 0:01:33]} 23. Qxe5 {[%clk 0:02:30]}  Rxb3 {[%clk 0:01:03]} 24. Rf2 {[%clk 0:02:28]} 1-0


[Site "https://www.chess.com"]

[Event "Titled Tuesday Blitz January 10 Early 2023"]
[White "Kornyukov, Alexey"]
[Black "Mendez Fortes, Eduardo Jesus"]
[WhiteFideId "4150457"]
[BlackFideId "3502376"]
[WhiteElo "2452"]
[BlackElo "2250"]
[Result "0-1"]
[Round "01"]
[TimeControl "180+2"]
[Date "2023.01.10"]
[WhiteClock "0:00:33"]
[BlackClock "0:01:03"]

1. e4 {[%clk 0:02:57]}  e5 {[%clk 0:02:58]} 2. Nf3 {[%clk 0:02:56]}  Nc6 {[%clk 0:02:58]} 3. Bc4 {[%clk 0:02:56]}  Nf6 {[%clk 0:02:58]} 4. d3 {[%clk 0:02:55]}  Bc5 {[%clk 0:02:57]} 5. O-O {[%clk 0:02:54]}  d6 {[%clk 0:02:58]} 6. c3 {[%clk 0:02:55]}  Bb6 {[%clk 0:02:58]} 7. Bg5 {[%clk 0:02:52]}  h6 {[%clk 0:02:58]} 8. Be3 {[%clk 0:02:52]}  O-O {[%clk 0:02:57]} 9. Bxb6 {[%clk 0:02:51]}  axb6 {[%clk 0:02:58]} 10. Nbd2 {[%clk 0:02:51]}  Ne7 {[%clk 0:02:58]} 11. h3 {[%clk 0:02:48]}  Ng6 {[%clk 0:02:58]} 12. Re1 {[%clk 0:02:47]}  c6 {[%clk 0:02:57]} 13. Nf1 {[%clk 0:02:47]}  Re8 {[%clk 0:02:57]} 14. Ng3 {[%clk 0:02:47]}  d5 {[%clk 0:02:57]} 15. Bb3 {[%clk 0:02:44]}  Be6 {[%clk 0:02:50]} 16. exd5 {[%clk 0:02:41]}  Bxd5 {[%clk 0:02:51]} 17. Bxd5 {[%clk 0:02:40]}  Qxd5 {[%clk 0:02:50]} 18. Ne4 {[%clk 0:02:39]}  Rxa2 {[%clk 0:02:26]} 19. Nxf6+ {[%clk 0:02:26]}  gxf6 {[%clk 0:02:26]} 20. Qd2 {[%clk 0:02:11]}  Rxa1 {[%clk 0:02:22]} 21. Rxa1 {[%clk 0:02:10]}  Nf4 {[%clk 0:02:22]} 22. Ra7 {[%clk 0:02:03]}  Nxh3+ {[%clk 0:02:06]} 23. gxh3 {[%clk 0:01:52]}  Qxf3 {[%clk 0:02:05]} 24. Qxh6 {[%clk 0:01:51]}  Qxd3 {[%clk 0:01:47]} 25. Kh2 {[%clk 0:01:29]}  Qf3 {[%clk 0:01:39]} 26. Ra4 {[%clk 0:01:19]}  Qxf2+ {[%clk 0:01:27]} 27. Kh1 {[%clk 0:01:18]}  e4 {[%clk 0:01:27]} 28. Ra1 {[%clk 0:01:13]}  e3 {[%clk 0:01:07]} 29. Ra4 {[%clk 0:00:47]}  Qf3+ {[%clk 0:01:04]} 30. Kh2 {[%clk 0:00:44]}  e2 {[%clk 0:01:04]} 31. Rg4+ {[%clk 0:00:33]}  Qxg4 {[%clk 0:01:03]} 0-1


[Site "https://www.chess.com"]